[Event "Summer Chess Classic-A 2022"]
[Site "Saint Louis"]
[Date "2022.06.04"]
[Round "3.1"]
[White "Yu, Yangyi"]
[Black "Robson, Ray"]
[Result "0-1"]
[ECO "E53"]
[WhiteElo "2710"]
[BlackElo "2684"]
[Annotator "TA"]
[PlyCount "183"]
[EventDate "2022.05.31"]
[EventType "tourn"]
[EventCountry "USA"]
[SourceTitle "playchess.com"]
[Source "ChessBase"]
[SourceQuality "1"]
[TimeControl "40/5400+30:1800+30"]

{[%evp 45,183,12,12,27,61,12,7,9,10,12,20,0,12,12,14,8,90,90,90,90,90,90,90,90,90,90,90,90,90,90,90,90,90,90,90,76,76,76,76,76,76,76,76,76,91,91,95,80,80,80,81,72,72,72,72,72,80,80,111,80,111,0,0,0,0,24,31,0,0,0,0,0,0,0,0,0,0,0,0,0,0,0,0,0,0,0,0,6,31,31,31,31,31,31,31,31,31,0,0,0,0,0,0,0,48,0,0,0,0,0,0,0,52,59,78,78,167,150,151,143,143,139,29982,29977,29976,29978,29986,29987,29987,29942,29988,12542,29964,0,6087,0,0,0,0,0]} 1. d4 {[%emt 0:00:04]} Nf6 {[%emt 0:00:06]} 2. c4 {[%emt 0:00:24]} e6 {[%emt 0:00:19]} 3. Nc3 {[%emt 0:01:04]} Bb4 {[%emt 0:00:28]} 4. e3 {[%emt 0:00:59]} O-O {[%emt 0:00:41]} 5. Bd3 {[%emt 0:00:10]} c5 {[%emt 0:06:37]} 6. Nf3 {[%emt 0:01:21]} d5 {[%emt 0:02:50]} 7. cxd5 {[%emt 0:00:49]} exd5 {[%emt 0:01:12]} 8. dxc5 {[%emt 0:00:33]} Bg4 {[%emt 0:04:14]} 9. O-O {[%emt 0:02:56]} Bxc5 {[%emt 0:03:01]} 10. h3 {[%emt 0:01:41]} Bh5 {[%emt 0:01:12]} 11. b3 {[%emt 0:03:59]} Nc6 {[%emt 0:02:37]} 12. Bb2 {[%emt 0:00:26]} a6 {[%emt 0:06:25]} 13. Be2 {[%emt 0:03:41]} Qd6 {[%emt 0:27:49]} 14. Nh4 {[%emt 0:08:49]} Bg6 {[%emt 0:01:25]} 15. Nxg6 {[%emt 0:02:47]} hxg6 {[%emt 0:00:25]} 16. Bf3 {[%emt 0:00:42]} Rad8 {[%emt 0:03:22]} 17. Ne2 {[%emt 0:02:23]} Ba3 {[%emt 0:04:25]} 18. Qc1 {[%emt 0:09:25]} Bxb2 {[%emt 0:00:30]} 19. Qxb2 {[%emt 0:02:04]} Ne5 {[%emt 0:01:41]} 20. Nd4 {[%emt 0:01:27]} Rc8 {[%emt 0:02:26]} 21. Be2 {[%emt 0:05:32]} Rc7 {[%emt 0:02:05]} 22. Rac1 {[%emt 0:02:46]} Rfc8 {[%emt 0:00:36]} 23. Nf3 {[%emt 0:01:53]} Nxf3+ {[%emt 0:01:45]} 24. Bxf3 {[%emt 0:02:17]} a5 {[%emt 0:03:35]} 25. Rfd1 {[%emt 0:01:19]} (25. Rxc7 $14 Rxc7 26. Rd1) 25... Rxc1 $1 $11 {[%emt 0:03:06]} 26. Rxc1 {[%emt 0:00:13]} Rxc1+ {[%emt 0:01:04]} 27. Qxc1 {[%emt 0:00:06]} Qb4 {[%emt 0:02:42]} 28. g3 {[%emt 0:03:37]} Ne4 {[%emt 0:01:28]} 29. Qc8+ {[%emt 0:04:33]} Kh7 {[%emt 0:00:04]} 30. Kg2 {[%emt 0:00:02]} Qd2 {[%emt 0:08:53]} (30... f5 $11 {keeps the balance.}) 31. Bxe4 $16 {[%emt 0:00:13]} dxe4 {[%emt 0:00:01]} 32. Qxb7 {[%emt 0:00:28]} Qxa2 {[%emt 0:00:41]} 33. Qxe4 {[%emt 0:01:24]} (33. Qxf7 $6 a4 $11) 33... Qxb3 {[%emt 0:00:24]} 34. Qh4+ {[%emt 0:00:09]} Kg8 {[%emt 0:00:07]} 35. Qd8+ {[%emt 0:00:04]} Kh7 {[%emt 0:00:09]} 36. Qxa5 {[%emt 0:01:01]} Qb7+ {[%emt 0:00:25]} 37. Kh2 {[%emt 0:00:27]} Qb2 {[%emt 0:02:50] [#]} 38. Qe1 $1 {[%emt 0:00:25]} g5 {[%emt 0:01:13]} 39. Kg1 {[%emt 0:01:15]} Qc2 {[%emt 0:01:22]} 40. Qa1 {[%emt 0:02:36]} Qf5 {[%emt 0:02:08]} 41. Qa2 {[%emt 0:34:15]} f6 {[%emt 0:11:25]} 42. Kh2 {[%emt 0:00:00]} g4 {[%emt 0:02:51]} 43. hxg4 {[%emt 0:00:00]} Qxg4 {[%emt 0:00:03]} 44. Qd5 {[%emt 0:00:00]} f5 {[%emt 0:05:06]} 45. Kg2 {[%emt 0:00:00]} Qg6 {[%emt 0:02:27]} 46. f3 {[%emt 0:00:00]} Qf6 {[%emt 0:01:08]} 47. g4 {[%emt 0:00:00]} g6 {[%emt 0:00:49]} 48. Kg3 {[%emt 0:00:00]} Qe7 {[%emt 0:01:45]} 49. Qd4 {[%emt 0:03:30]} (49. gxf5 Qg5+ 50. Kf2 gxf5 $16) 49... Qc7+ {[%emt 0:00:24]} 50. Qf4 {[%emt 0:02:16]} Qc5 {[%emt 0:05:34]} 51. Kh4 {[%emt 0:02:06]} Qe7+ {[%emt 0:04:26]} 52. Kh3 {[%emt 0:01:34]} Qe6 {[%emt 0:01:19]} 53. Kg3 {[%emt 0:00:52]} (53. g5 $16) 53... fxg4 $11 {[%emt 0:01:16]} 54. fxg4 {[%emt 0:00:06]} Kg8 {[%emt 0:00:44]} 55. Qd4 {[%emt 0:00:19]} Qe7 {[%emt 0:01:35]} 56. Kf4 {[%emt 0:00:25]} Qh4 {[%emt 0:00:31]} 57. Qd5+ {[%emt 0:03:26]} Kg7 {[%emt 0:00:14]} 58. Qd4+ {[%emt 0:02:04]} Kh7 {[%emt 0:00:43]} 59. Qb2 {[%emt 0:05:27]} Qh6+ {[%emt 0:00:27]} 60. Ke4 {[%emt 0:00:05]} Qh4 {[%emt 0:00:17]} 61. Qe2 {[%emt 0:04:47]} Kh6 {[%emt 0:00:23]} 62. Kf4 {[%emt 0:00:45]} Qf6+ {[%emt 0:00:30]} 63. Kg3 {[%emt 0:00:01]} Qe5+ {[%emt 0:00:28]} 64. Kh3 {[%emt 0:00:12]} Qe4 {[%emt 0:01:05]} 65. Qf2 {[%emt 0:00:08]} Kg7 {[%emt 0:00:29]} 66. Kg3 {[%emt 0:00:06]} Qe5+ {[%emt 0:00:31]} 67. Qf4 {[%emt 0:00:04]} Qa5 {[%emt 0:00:30]} 68. Qd4+ {[%emt 0:00:09]} Kh7 {[%emt 0:00:28]} 69. Kf4 {[%emt 0:00:04]} Qc7+ {[%emt 0:00:29]} 70. Qe5 {[%emt 0:00:05]} Qd8 {[%emt 0:00:35]} 71. g5 {[%emt 0:02:58]} Kg8 {[%emt 0:00:16]} 72. Qf6 {[%emt 0:01:09]} Qc7+ {[%emt 0:00:19]} 73. Kf3 {[%emt 0:00:10]} Kh7 {[%emt 0:00:56]} 74. e4 {[%emt 0:00:16]} Qh2 {[%emt 0:00:28]} (74... Qd7 $1 $11) 75. e5 {[%emt 0:01:56]} (75. Qf7+ $6 Kh8 $16) (75. Qe7+ $14 {was preferrable.} Kg8 76. Qe6+ Kh7 77. Qf7+ Kh8 78. Qf6+ (78. Qxg6 Qf2+ 79. Kg4 Qf4+ 80. Kh5 Qf3+ 81. Kh4 Qf2+ 82. Kg4 Qe2+ 83. Kg3 Qe3+ 84. Kh4 Qf2+ 85. Kh3 Qf3+ 86. Kh4 Qf4+ 87. Kh5 Qf3+ 88. Kh6 Qh1+ 89. Qh5 Qxe4 $11) 78... Kh7 79. Ke3 (79. Qf7+ Kh8 $16)) 75... Qh1+ {[%emt 0:00:25]} 76. Ke3 {[%emt 0:00:03]} Qg1+ {[%emt 0:00:33]} 77. Ke4 {[%emt 0:00:06]} Qb1+ {[%emt 0:00:26]} 78. Kd5 {[%emt 0:00:05]} Kg8 {[%emt 0:00:36]} ({Black should try} 78... Qb7+ $11 79. Ke6 Qc6+ 80. Kf7 Qd7+ 81. Qe7 (81. Kf8 Qc8+ 82. Kf7 Qf8+ 83. Ke6 Qc8+ 84. Kd5 Qb7+ 85. Qc6 Qe7 $16) 81... Qf5+ 82. Ke8+ Kg8) 79. Qd8+ $14 {[%emt 0:00:47]} Kg7 {[%emt 0:00:16]} 80. Kd6 {[%emt 0:04:41]} (80. Qf6+ Kg8 81. Kc6 Qh1+ 82. Kc7 Qe4 83. Qe6+ (83. e6 Qc4+ 84. Kd8 Qd5+ 85. Ke8 Qb5+ 86. Ke7 Qc5+ 87. Kd7 Qd5+ 88. Kc8 Qc5+ 89. Kb8 Qb5+ 90. Kc7 Qc5+ 91. Kd8 Qd5+ 92. Ke8 Qb5+ 93. Kd8 Qd5+ $11) 83... Kg7 $18) 80... Qb4+ {[%emt 0:00:23]} (80... Qd3+ $16 81. Ke7 Qf5) 81. Kd7 $18 {[%emt 0:00:20]} Qa4+ {[%emt 0:00:52]} (81... Qd4+ 82. Ke8 Qb2 83. Qc7+ Kg8 84. Qf7+ Kh8 85. Kf8 Qb8+ 86. Qe8) 82. Ke7 {[%emt 0:00:14]} Qf4 {[%emt 0:00:24] [#]} 83. Qd6 $1 {[%emt 0:01:14]} Kh7 $2 {[%emt 0:00:24][%mdl 8192]} (83... Qf8+ $16 84. Kd7 Qf5+ 85. Ke8 Kg8 86. Qd5+ Kh8) 84. Ke8 {[%emt 0:01:34]} Qe4 {[%emt 0:00:43]} 85. e6 {[%emt 0:01:03]} Kg8 {[%emt 0:00:30]} 86. Qf8+ {[%emt 0:06:12]} Kh7 {[%emt 0:00:02]} 87. Qf7+ {[%emt 0:00:16]} Kh8 {[%emt 0:00:02]} 88. Qd7 {[%emt 0:00:20]} (88. Kf8 $142 Qb4+ 89. Qe7 (89. e7 Qxe7+ 90. Kxe7 $11) 89... Qf4+ 90. Qf6+ Qxf6+ 91. gxf6 Kh7 92. f7 Kh6 93. Kg8) 88... Kg8 {[%emt 0:00:41]} 89. Qd6 $2 {[%emt 0:00:37]} (89. Kd8 {mates} Qa8+ 90. Qc8 Qa3 91. Kd7+ (91. e7 Qd6+ 92. Ke8 Qd5 $18) 91... Kg7 92. Qb7 (92. e7 Qd3+ 93. Ke8 Qb5+ 94. Kd8 Qb6+ 95. Kd7 Qd4+ 96. Ke8 Qa4+ 97. Kd8 Qd4+ 98. Kc7 Qe5+ 99. Kd8 Qd4+ 100. Kc7 Qc4+ 101. Kb8 Qb5+ 102. Ka8 Qa4+ 103. Kb8 Qb5+ 104. Qb7 Qe5+ 105. Qc7 Qb5+ 106. Ka8 Qa4+ 107. Kb8 Qb5+ 108. Ka7 Kf7 $11) 92... Kg8 93. Qb8+ Kh7 94. Qd6 Qa4+ 95. Kd8) 89... Qa8+ $2 {[%emt 0:01:08][%mdl 8192]} (89... Qa4+ $11 90. Qd7 Qa8+ 91. Qd8 Qb7) 90. Ke7 $2 {[%emt 0:01:19]} (90. Qd8 $18 Qb7 91. Qa5) 90... Qa7+ $1 $11 {[%emt 0:00:29]} 91. Kd8 {[%emt 0:00:23]} Qa8+ {[%emt 0:00:37]} 92. Kd7 {[%emt 0:00:11]} 0-1

[Event "Summer Chess Classic-A 2022"]
[Site "Saint Louis"]
[Date "2022.06.04"]
[Round "3.2"]
[White "Smirin, Ilia"]
[Black "Oparin, Grigoriy"]
[Result "1/2-1/2"]
[ECO "C65"]
[WhiteElo "2599"]
[BlackElo "2685"]
[Annotator "TA"]
[PlyCount "179"]
[EventDate "2022.05.31"]
[EventType "tourn"]
[EventCountry "USA"]
[SourceTitle "playchess.com"]
[Source "ChessBase"]
[SourceQuality "1"]
[TimeControl "40/5400+30:1800+30"]

{[%evp 9,179,6,12,4,1,11,12,0,-1,0,0,-4,0,0,22,-6,-8,-8,-10,-9,-10,-11,-7,-11,-12,-15,-8,-8,-6,-10,-6,-24,-26,-56,-45,-56,-16,-27,0,0,0,0,-6,-6,-12,-40,-46,-50,-49,-92,-92,-92,-92,-92,-92,-92,-92,-92,-92,-92,-92,-92,-92,-92,-92,-92,-92,-92,-92,-93,-78,-93,-93,-125,-125,-125,-125,-125,-125,-125,-125,-125,-125,-125,-125,-125,-125,-125,-125,-125,-125,-125,-104,-104,-104,-104,0,-104,-104,-104,0,-104,0,-104,-104,-104,-104,-104,-104,-104,-104,-104,-104,-104,-104,-104,-104,-104,-104,-104,-104,-104,-104,-104,-104,-104,-104,-104,-104,-104,-104,-104,-104,-104,-104,-104,-104,-104,-104,-104,-104,-104,-104,-104,0,0,0,0,0,0,0,0,0,0,0,0,0,0,0,0,0,0,0,0,0,0,0,0,0,0,0,0]} 1. e4 {[%emt 0:07:48]} e5 {[%emt 0:00:08]} 2. Nf3 {[%emt 0:00:12]} Nc6 {[%emt 0:00:06]} 3. Bb5 {[%emt 0:00:12]} Nf6 {[%emt 0:00:09]} 4. d3 {[%emt 0:00:32]} Bc5 {[%emt 0:00:09]} 5. c3 {[%emt 0:01:19]} d5 {[%emt 0:00:24]} 6. Nxe5 {[%emt 0:02:20] C65: Ruy Lopez: Berlin Defence (3...Nf6), unusual lines and 4 0-0 Bc5.} O-O $1 {[%emt 0:00:38]} 7. Bxc6 {[%emt 0:00:39]} bxc6 {[%emt 0:00:18]} 8. O-O {[%emt 0:00:27]} ({Of course not} 8. Nxc6 Qe8 9. Na5 Ba6 $15) 8... dxe4 {[%emt 0:01:42]} 9. d4 {[%emt 0:00:17]} Bd6 {[%emt 0:00:19]} 10. Bg5 {[%emt 0:04:52]} h6 {[%emt 0:00:59]} 11. Bh4 {[%emt 0:05:17]} Ba6 {[%emt 0:01:13]} 12. Re1 {[%emt 0:00:45]} (12. Ng4 $5 {[%cal Rh4f6]} Be7 13. Bxf6 Bxf6 14. Re1 $11) 12... Bxe5 {[%emt 0:00:12]} 13. dxe5 {[%emt 0:00:04]} Qxd1 {[%emt 0:00:05]} 14. Rxd1 {[%emt 0:00:06]} Ng4 {[%emt 0:00:05]} 15. Nd2 {[%emt 0:09:06]} Nxe5 {[%emt 0:01:13][%cal Bg4e5,Be5d3,Bd3b2][%mdl 32]} 16. Nxe4 {[%emt 0:01:50]} Nd3 $1 {[%emt 0:00:11] Prevents Nc5. next ...g5 is good for Black.} 17. Be7 {[%emt 0:01:34] [#]} Nxb2 $146 {[%emt 0:10:25]} ({Predecessor:} 17... Rfe8 18. Nc5 Rxe7 19. Nxd3 Bxd3 20. Rxd3 Re2 21. b3 Rae8 22. Kf1 Rb2 23. Re1 Rxe1+ 24. Kxe1 Rxa2 {½-½ (30) Navara,D (2726)-Grischuk,A (2785) Antalya 2017}) 18. Rd7 {[%emt 0:07:42]} Rfc8 {[%emt 0:01:55]} 19. Nc5 {[%emt 0:03:18] Against Na4} Bc4 {[%emt 0:00:24]} 20. h3 {[%emt 0:12:11]} Bd5 {[%emt 0:10:18]} 21. Na6 {[%emt 0:03:38]} Na4 $1 {[%emt 0:05:06]} 22. Bb4 {[%emt 0:06:09]} Be6 {[%emt 0:10:38]} (22... Bc4 $5 {[%cal Rc4a6]} 23. Nxc7 Rd8 $15) 23. Re7 {[%emt 0:01:51]} c5 {[%emt 0:03:01]} (23... Bc4 $5 {[%cal Rc4a6]} 24. Nxc7 Rab8 $15) 24. Nxc5 {[%emt 0:10:14]} Nxc5 {[%emt 0:00:07]} 25. Bxc5 {[%emt 0:00:03]} a5 {[%emt 0:00:22]} 26. a4 {[%emt 0:10:55]} Ra6 {[%emt 0:01:39]} 27. Re1 {[%emt 0:01:40]} Rc6 {[%emt 0:01:24]} 28. Re5 {[%emt 0:00:06]} Rd8 {[%emt 0:02:16]} 29. Bd4 {[%emt 0:02:47]} Kf8 {[%emt 0:00:56]} 30. Bc5 {[%emt 0:00:32] [#]} Rxc5 {[%emt 0:01:21]} 31. R7xe6 {[%emt 0:00:06]} Rxc3 $17 {[%emt 0:00:08][%mdl 4096] Endgame KRR-KRR} ({Much less strong is} 31... fxe6 32. Rxc5 Rd5 33. Rxc7 $14) 32. Ra6 {[%emt 0:00:05]} g6 {[%emt 0:01:09]} 33. Raxa5 {[%emt 0:04:28]} Rd1+ {[%emt 0:02:41]} 34. Kh2 {[%emt 0:00:04]} Rc2 $1 {[%emt 0:00:03]} 35. Rac5 {[%emt 0:01:32]} Rxf2 {[%emt 0:00:36]} 36. Re3 {[%emt 0:00:08]} Rdd2 {[%emt 0:02:26]} 37. Rg3 {[%emt 0:00:11] [#]} Ra2 $1 {[%emt 0:00:06]} 38. Rxc7 {[%emt 0:01:29]} Rxa4 {[%emt 0:00:12]} 39. Rcc3 {[%emt 0:02:14]} Raf4 {[%emt 0:01:52]} 40. Rgd3 {[%emt 0:00:26]} Kg7 {[%emt 0:01:06]} 41. Kg3 {[%emt 0:01:32]} h5 {[%emt 0:00:48]} 42. Rf3 {[%emt 0:01:21]} R2xf3+ {[%emt 0:00:14]} 43. gxf3 {[%emt 0:00:07] KR-KR} g5 {[%emt 0:00:03]} 44. Rc5 {[%emt 0:02:14]} Kg6 {[%emt 0:00:43]} 45. Rc6+ {[%emt 0:01:12]} f6 {[%emt 0:00:08]} 46. Rc5 {[%emt 0:00:36]} Rd4 {[%emt 0:00:43]} 47. Rc2 {[%emt 0:02:31]} h4+ {[%emt 0:00:49]} 48. Kf2 {[%emt 0:00:08]} Kf5 {[%emt 0:00:51]} 49. Rc5+ {[%emt 0:01:33]} Kf4 {[%emt 0:00:06]} 50. Rc2 {[%emt 0:00:01] Inhibits Rd2+.} f5 {[%emt 0:05:42]} 51. Ra2 {[%emt 0:00:22]} Ke5 {[%emt 0:00:17]} 52. Re2+ {[%emt 0:03:10] [#]} Kd5 {[%emt 0:00:15]} (52... Kf6 $1 $17 53. Ra2 Rd3 54. Ra6+ Ke5) 53. Ra2 {[%emt 0:00:09]} (53. Re7 $11) 53... Rc4 {[%emt 0:01:19]} 54. Rd2+ {[%emt 0:04:32]} Kc5 {[%emt 0:00:35]} (54... Ke6 $17 55. Ra2 Ke5) 55. Ra2 {[%emt 0:03:47]} (55. Rd8 $11 {remains equal.}) 55... Rb4 {[%emt 0:09:21]} ({Better is} 55... Kd6 $17 56. Ke2 Ke5) 56. Rc2+ {[%emt 0:03:22]} (56. Ra8 $11) 56... Kd4 {[%emt 0:01:01]} 57. Rd2+ {[%emt 0:01:29]} Kc4 {[%emt 0:00:15]} 58. Ra2 {[%emt 0:01:02]} f4 {[%emt 0:07:57]} 59. Ke2 {[%emt 0:06:04]} Kc3 {[%emt 0:04:44]} 60. Ra3+ {[%emt 0:00:12]} Kd4 {[%emt 0:00:08]} 61. Ra2 {[%emt 0:00:45]} Rb5 {[%emt 0:01:19]} 62. Ra4+ {[%emt 0:01:40]} Kc3 {[%emt 0:00:11]} 63. Ra3+ {[%emt 0:01:09]} Kc4 {[%emt 0:00:34] aiming for ...Rb2+.} 64. Ra2 {[%emt 0:00:52] Prevents Rb2+.} Re5+ {[%emt 0:01:00]} 65. Kf2 {[%emt 0:00:05]} Rc5 {[%emt 0:03:55]} 66. Ke2 {[%emt 0:00:43]} Kd4 {[%emt 0:02:36]} 67. Rd2+ {[%emt 0:00:16]} Kc3 {[%emt 0:00:05] ...Re5+ is the strong threat.} 68. Rd3+ {[%emt 0:01:23]} Kc4 {[%emt 0:00:06] Hoping for ...Re5+.} 69. Rd8 {[%emt 0:00:31]} Re5+ {[%emt 0:00:31]} 70. Kf2 {[%emt 0:00:10]} Rd5 {[%emt 0:01:48]} 71. Rc8+ {[%emt 0:00:15]} Kd3 {[%emt 0:00:13]} 72. Ra8 {[%emt 0:01:12]} Kc2 {[%emt 0:01:35]} 73. Rc8+ {[%emt 0:00:52]} Kd1 {[%emt 0:00:10]} 74. Rg8 {[%emt 0:00:15]} Rc5 {[%emt 0:04:41]} 75. Rd8+ {[%emt 0:00:07]} Kc1 {[%emt 0:00:03]} 76. Rg8 {[%emt 0:00:28]} Rc2+ {[%emt 0:06:45]} ({Black should play} 76... Kd2 $17 77. Re8 Ra5) 77. Ke1 $11 {[%emt 0:00:15] The position is equal.} Rg2 {[%emt 0:00:39]} 78. Rc8+ {[%emt 0:01:08]} Kb2 {[%emt 0:00:16]} 79. Rc5 {[%emt 0:00:39]} Kb3 {[%emt 0:00:14]} 80. Kf1 {[%emt 0:00:05]} Kb4 {[%emt 0:00:07]} 81. Rf5 {[%emt 0:00:07]} Rg3 $1 {[%emt 0:00:05][%csl LRf3,LRh3]} 82. Kf2 {[%emt 0:00:05]} Kc4 {[%emt 0:00:04]} 83. Ra5 {[%emt 0:00:35]} Kd4 {[%emt 0:00:05]} 84. Rb5 {[%emt 0:00:29]} Rxh3 {[%emt 0:00:20] White must now prevent ...Rh2+.} 85. Rxg5 {[%emt 0:00:18]} Rh2+ {[%emt 0:00:03]} 86. Kg1 {[%emt 0:00:18]} Rd2 {[%emt 0:04:14] Strongly threatening ...Ke3.} 87. Rg4 {[%emt 0:00:21][%csl LRf4,LRh4]} Ke3 {[%emt 0:00:03]} 88. Rxh4 {[%emt 0:00:05]} Rd8 {[%emt 0:00:03]} 89. Kf1 {[%emt 0:01:50]} Rd7 {[%emt 0:00:40]} 90. Rh8 {[%emt 0:00:22] Weighted Error Value: White=0.15 (very precise) /Black=0.08 (flawless)} 1/2-1/2

[Event "Summer Chess Classic-A 2022"]
[Site "Saint Louis"]
[Date "2022.06.04"]
[Round "3.3"]
[White "Theodorou, Nikolas"]
[Black "Gledura, Benjamin"]
[Result "1/2-1/2"]
[ECO "D02"]
[WhiteElo "2567"]
[BlackElo "2644"]
[Annotator "TA"]
[PlyCount "98"]
[EventDate "2022.05.31"]
[EventType "tourn"]
[EventCountry "USA"]
[SourceTitle "playchess.com"]
[Source "ChessBase"]
[SourceQuality "1"]
[TimeControl "40/5400+30:1800+30"]

{[%evp 9,98,25,27,29,29,31,25,38,40,18,23,20,58,10,56,46,51,37,43,48,50,20,20,25,36,27,25,4,30,14,34,39,34,6,6,6,7,0,33,20,26,20,13,12,12,10,10,8,15,13,53,5,5,5,8,0,0,0,28,0,0,0,27,18,41,8,3,-7,-10,-44,-40,-52,-32,-82,-44,-23,-33,-102,-63,-56,-32,-58,-57,-58,0,0,0,-52,0,0,0]} 1. d4 {[%emt 0:00:03]} Nf6 {[%emt 0:00:10]} 2. Nf3 {[%emt 0:00:08]} g6 {[%emt 0:01:19]} 3. Nbd2 {[%emt 0:00:07]} d5 {[%emt 0:00:43]} 4. b4 {[%emt 0:00:18]} Bg7 {[%emt 0:01:53]} 5. e3 {[%emt 0:00:08]} O-O {[%emt 0:02:14]} 6. Be2 {[%emt 0:00:09] D02: 1 d4 d5 2 Nf3 sidelines, including 2...Nf6 3 g3 and 2...Nf6 3 Bf4.} Bg4 {[%emt 0:04:33]} 7. O-O {[%emt 0:01:27]} Nbd7 {[%emt 0:00:54]} 8. c4 {[%emt 0:04:29] White has an edge.} c6 {[%emt 0:03:01]} 9. a4 {[%emt 0:04:59]} Re8 {[%emt 0:16:01]} 10. Bb2 {[%emt 0:00:40]} e6 {[%emt 0:04:57]} 11. b5 {[%emt 0:13:57] [#]} (11. h3 $14 Bxf3 12. Nxf3 (12. Bxf3 Bf8 $14)) 11... Rc8 $146 {[%emt 0:05:34]} (11... Ne4 $11 {is superior.}) ({Predecessor:} 11... c5 12. h3 Bxf3 13. Nxf3 cxd4 14. Nxd4 e5 15. Nb3 dxc4 16. Bxc4 Rc8 17. Qe2 Nb6 {½-½ (42) Zhao,H (1809)-Pan,C (1975) Windsor 2016}) 12. Rc1 {[%emt 0:05:15]} c5 {[%emt 0:20:14]} 13. h3 {[%emt 0:04:22]} Bxf3 {[%emt 0:00:06]} 14. Bxf3 {[%emt 0:01:43]} cxd4 {[%emt 0:00:06]} 15. exd4 {[%emt 0:18:19]} (15. Bxd4 {looks sharper.} a6 16. cxd5 Rxc1 17. Qxc1 Nxd5 18. Bxg7 Kxg7 19. bxa6 bxa6 20. Rd1) 15... b6 {[%emt 0:00:30] Inhibits c5.} 16. Re1 {[%emt 0:07:11]} Bh6 {[%emt 0:03:50]} 17. Rc2 {[%emt 0:02:35]} Rc7 {[%emt 0:03:44]} 18. Nb1 {[%emt 0:03:27][%cal Bd2b1,Bb1a3,Ba3c2,Bc2e3,Be3c4,Bc4e5][%mdl 32]} Qc8 {[%emt 0:05:22]} ({Resist} 18... dxc4 19. Bc6 $16) 19. Na3 {[%emt 0:01:14]} Bf8 {[%emt 0:04:28]} 20. cxd5 {[%emt 0:01:32]} Rxc2 {[%emt 0:01:57]} 21. Nxc2 {[%emt 0:01:34]} Nxd5 {[%emt 0:00:07]} 22. Ne3 {[%emt 0:01:05]} N7f6 {[%emt 0:00:08]} 23. Qb3 {[%emt 0:00:38]} Qd7 {[%emt 0:00:17]} 24. Nc4 {[%emt 0:04:28]} Rc8 {[%emt 0:00:10]} 25. Ne5 {[%emt 0:01:46]} Qd6 {[%emt 0:00:09]} 26. Rc1 {[%emt 0:04:46]} Rxc1+ {[%emt 0:01:01]} 27. Bxc1 {[%emt 0:00:03]} Ne7 {[%emt 0:02:22]} 28. Qc4 {[%emt 0:03:15]} Nfd5 {[%emt 0:04:35]} 29. g3 {[%emt 0:02:08]} Qc7 {[%emt 0:04:55]} 30. Bxd5 {[%emt 0:10:30]} (30. Qxc7 $14 {should be considered.} Nxc7 31. Kf1) 30... Nxd5 $11 {[%emt 0:00:07]} 31. Qxc7 {[%emt 0:00:06]} Nxc7 $14 {[%emt 0:00:02][%mdl 4096] Endgame KBN-KBN} 32. Bf4 {[%emt 0:00:15][%cal Oe5g6]} Nd5 {[%emt 0:03:54]} 33. Bd2 {[%emt 0:00:02]} Nc7 {[%emt 0:00:49]} 34. Bf4 {[%emt 0:00:02][%cal Oe5g6]} Nd5 {[%emt 0:00:07]} 35. Bd2 {[%emt 0:00:05]} Nc7 {[%emt 0:00:06]} 36. Kf1 {[%emt 0:02:12]} f6 {[%emt 0:04:55]} 37. Nc6 {[%emt 0:01:12]} a5 {[%emt 0:00:06]} 38. Bf4 {[%emt 0:02:24]} Nd5 {[%emt 0:00:24]} 39. Nd8 {[%emt 0:00:36]} Nc3 {[%emt 0:03:00][%cal Bd5c3,Bc3a4,Ba4b2,Bb2c4,Bc4d6][%mdl 32]} ({Don't play} 39... Nxf4 40. gxf4 Bd6 41. Nxe6 $11) 40. Nxe6 {[%emt 0:00:39]} Nxa4 {[%emt 0:00:06]} 41. Bd2 {[%emt 0:22:03] Prevents Nc3.} (41. Ke2 $1 $15 Nc3+ 42. Kd3 Nxb5 43. Kc4) 41... Kf7 {[%emt 0:03:28]} 42. Nc7 {[%emt 0:05:43]} Nb2 {[%emt 0:06:31]} 43. Bc3 {[%emt 0:01:12]} (43. Nd5 $15) 43... Nc4 {[%emt 0:00:31]} 44. Ke2 {[%emt 0:00:07]} Be7 {[%emt 0:02:45] And now ...Bd8 would win.} 45. Kd3 {[%emt 0:01:12]} Nd6 {[%emt 0:00:08] ...Bd8 is the strong threat.} 46. d5 $1 {[%emt 0:00:22]} Bd8 {[%emt 0:07:03]} 47. Ne6 {[%emt 0:00:02]} Be7 {[%emt 0:00:10]} 48. Nc7 {[%emt 0:00:08]} Bd8 {[%emt 0:01:36]} ({Better is} 48... f5 $15) 49. Ne6 $11 {[%emt 0:00:02]} Be7 {[%emt 0:00:07] Weighted Error Value: White=0.11 (very precise) /Black=0.09 (flawless)} 1/2-1/2